lending/lending_fUSD_20251022
["ID","MTS","AMOUNT","RATE_DAILY","PERIOD"]
[392065395,1761135065404,-500.0,0.00044109,120]
[392065396,1761135065415,-500.0,0.00044109,120]
[392065397,1761135065425,-219.64598642,0.00044109,120]
[392065398,1761135065435,-500.0,0.00044109,120]
[392065399,1761135065445,-500.0,0.00044109,16]
[392065400,1761135065455,-500.0,0.00044109,120]
[392065401,1761135065464,-210.69258919,0.00044109,120]
[392065402,1761135065474,-500.0,0.00044109,120]
[392065403,1761135065483,-4249.64,0.00044109,30]
[392065404,1761135065492,-560.7223266,0.00044109,120]
[392065405,1761135065502,-8039.99,0.00044109,120]
[392065406,1761135065511,-212.92307523,0.00044109,120]
[392065407,1761135065520,-500.0,0.00044109,120]
[392065408,1761135065530,-500.0,0.00044109,120]
[392065409,1761135065539,-500.0,0.00044109,120]
[392065410,1761135065548,-500.0,0.00044109,120]
[392065411,1761135065558,-500.0,0.00044109,120]
[392065412,1761135065567,-533.8812288,0.00044109,120]
[392065413,1761135065576,-511.46437034,0.00044109,120]
[392065414,1761135065586,-1000.0,0.00044109,120]
[392065415,1761135065595,-500.0,0.00044109,120]
[392065416,1761135065606,-500.0,0.00044109,120]
[392065417,1761135065615,-500.0,0.00044109,120]
[392065418,1761135065625,-500.0,0.00044109,120]
[392065419,1761135065635,-517.71101173,0.00044109,120]
[392065420,1761135065644,-500.0,0.00044109,120]
[392065421,1761135065654,-501.48937931,0.00044109,120]
[392065422,1761135065663,-556.61,0.00044109,120]
[392065423,1761135065673,-500.0,0.00044109,120]
[392065424,1761135065683,-500.0,0.00044109,2]
[392065425,1761135065692,-500.0,0.00044109,120]
[392065426,1761135065701,-473.33338183,0.00044109,120]
[392065427,1761135065711,-502.38053506,0.00044109,120]
[392065428,1761135065720,-1731.38,0.00044109,120]
[392065429,1761135065731,-500.0,0.00044109,120]
[392065430,1761135065740,-500.0,0.00044109,120]
[392065431,1761135065750,-500.0,0.00044109,120]
[392065432,1761135065760,-173.45177795,0.00044109,120]
[392065433,1761135065770,-500.0,0.00044109,120]
[392065434,1761135065780,-500.0,0.00044109,120]
[392065435,1761135065790,-605.15654985,0.00044109,120]
[392065436,1761135065800,-964.29,0.00044109,120]
[392065437,1761135065810,-500.0,0.00044109,120]
[392065438,1761135065820,-10625.73,0.00044109,14]
[392065439,1761135065830,-500.0,0.00044109,120]
[392065440,1761135065840,-500.0,0.00044109,120]
[392065441,1761135065852,-500.0,0.00044109,120]
[392065442,1761135065862,-500.0,0.00044109,120]
[392065443,1761135065871,-500.0,0.00044109,120]
[392065444,1761135065893,-500.0,0.00044109,120]
[392065445,1761135065912,-520.58999181,0.00044109,120]
[392065446,1761135065931,-500.0,0.00044109,120]
[392065447,1761135065953,-502.11779509,0.00044109,120]
[392065448,1761135065968,-500.0,0.00044109,120]
[392065449,1761135065988,-500.0,0.00044109,120]
[392065450,1761135066008,-500.0,0.00044109,120]
[392065451,1761135066028,-500.0,0.00044109,120]
[392065452,1761135066048,-500.0,0.00044109,90]
[392065453,1761135066065,-500.0,0.00044109,120]
[392065454,1761135066083,-500.0,0.00044109,120]
[392065455,1761135066099,-2209.9,0.00044109,120]
[392065456,1761135066117,-500.0,0.00044109,120]
[392065457,1761135066133,-500.0,0.00044109,120]
[392065458,1761135066150,-500.0,0.00044109,120]
[392065459,1761135066167,-500.0,0.00044109,120]
[392065460,1761135066182,-1033.69,0.00044109,120]
[392065461,1761135066198,-502.08709052,0.00044109,120]
[392065462,1761135066214,-500.0,0.00044109,120]
[392065463,1761135066229,-500.0,0.00044109,120]
[392065464,1761135066246,-500.0,0.00044109,120]
[392065465,1761135066262,-532.02358256,0.00044109,120]
[392065466,1761135066277,-500.0,0.00044109,120]
[392065467,1761135066292,-500.0,0.00044109,120]
[392065468,1761135066308,-1687.59,0.00044109,120]
[392065469,1761135066323,-519.97065272,0.00044109,120]
[392065470,1761135066338,-500.0,0.00044109,120]
[392065471,1761135066358,-1271.93,0.00044109,120]
[392065472,1761135066373,-500.0,0.00044109,120]
[392065473,1761135066389,-617.33282192,0.00044109,120]
[392065474,1761135066405,-523.33711117,0.00044109,120]
[392065475,1761135066420,-1740.94,0.00044109,120]
[392065476,1761135066435,-500.0,0.00044109,120]
[392065477,1761135066450,-570.1592609,0.00044109,120]
[392065478,1761135066467,-1064.16,0.00044109,120]
[392065479,1761135066482,-229.30322327,0.00044109,2]
[392065480,1761135066498,-1934.23,0.00044109,120]
[392065481,1761135066512,-703.4,0.00044109,120]
[392065482,1761135066527,-500.0,0.00044109,120]
[392065483,1761135066542,-237.92432479,0.00044109,120]
[392065484,1761135066557,-500.0,0.00044109,2]
[392065485,1761135066572,-694.75,0.00044109,120]
[392065486,1761135066586,-500.0,0.00044109,120]
[392065487,1761135066602,-614.58010305,0.00044109,120]
[392065488,1761135066616,-500.0,0.00044109,120]
[392065489,1761135066631,-243.12978214,0.00044109,120]
[392065490,1761135066648,-500.0,0.00044109,120]
[392065491,1761135066663,-500.0,0.00044109,3]
[392065492,1761135066678,-500.0,0.00044109,120]
[392065493,1761135066693,-1460.92,0.00044109,120]
[392065494,1761135066709,-500.0,0.00044109,120]
[392065495,1761135066724,-500.0,0.00044109,120]
[392065496,1761135066739,-625.08,0.00044109,120]
[392065497,1761135066755,-500.0,0.00044109,120]
[392065498,1761135066769,-500.0,0.00044109,120]
[392065499,1761135066784,-500.0,0.00044109,120]
[392065500,1761135066799,-500.0,0.00044109,120]
[392065501,1761135066814,-1203.55,0.00044109,120]
[392065502,1761135066829,-508.48234185,0.00044109,120]
[392065503,1761135066844,-500.0,0.00044109,120]
[392065504,1761135066863,-500.0,0.00044109,120]
[392065505,1761135066876,-500.0,0.00044109,120]
[392065506,1761135066892,-927.76,0.00044109,120]
[392065507,1761135066910,-500.0,0.00044109,120]
[392065508,1761135066925,-502.56098204,0.00044109,120]
[392065509,1761135066939,-500.0,0.00044109,120]
[392065510,1761135067090,-1323.49,0.00044109,120]
[392065511,1761135067106,-500.0,0.00044109,120]
[392065512,1761135067116,-500.0,0.00044109,120]
[392065513,1761135067125,-779.68,0.00044109,120]
[392065514,1761135067135,-500.0,0.00044109,120]
[392065515,1761135067145,-1333.63,0.00044109,120]
[392065516,1761135067155,-3131.71,0.00044109,120]
[392065517,1761135067165,-647.57886903,0.00044109,120]
[392065518,1761135067175,-500.0,0.00044109,120]
[392065519,1761135067184,-257.77188077,0.00044109,120]
[392065520,1761135067194,-508.06838191,0.00044109,120]
[392065521,1761135067204,-500.0,0.00044109,120]
[392065522,1761135067214,-649.38,0.00044109,120]
[392065523,1761135067224,-500.0,0.00044109,120]
[392065524,1761135067233,-500.0,0.00044109,120]
[392065525,1761135067242,-1608.24,0.00044109,120]
[392065526,1761135067251,-500.0,0.00044109,120]
[392065527,1761135067261,-500.0,0.00044109,120]
[392065528,1761135067270,-500.0,0.00044109,120]
[392065529,1761135067279,-500.0,0.00044109,120]
[392065530,1761135067289,-565.31,0.00044109,120]
[392065531,1761135067299,-500.0,0.00044109,120]
[392065532,1761135067308,-500.0,0.00044109,120]
[392065533,1761135067318,-500.0,0.00044109,120]
[392065534,1761135067329,-684.58,0.00044109,120]
[392065535,1761135067338,-307.80199844,0.00044109,120]
[392065536,1761135067347,-500.0,0.00044109,120]
[392065537,1761135067357,-500.0,0.00044109,120]
[392065538,1761135067366,-1472.23,0.00044109,120]
[392065539,1761135067376,-500.0,0.00044109,120]
[392065540,1761135067386,-500.0,0.00044109,120]
[392065541,1761135067395,-1337.7,0.00044109,120]
[392065542,1761135067405,-500.0,0.00044109,120]
[392065543,1761135067416,-500.0,0.00044109,120]
[392065544,1761135067427,-152.66225279,0.00044109,120]
[392065545,1761135067436,-877.86,0.00044109,120]
[392065546,1761135067446,-500.0,0.00044109,120]
[392065547,1761135067456,-500.0,0.00044109,120]
[392065548,1761135067466,-508.96422924,0.00044109,120]
[392065549,1761135067475,-500.38690316,0.00044109,120]
[392065550,1761135067486,-500.0,0.00044109,120]
[392065551,1761135067497,-1310.08,0.00044109,120]
[392065552,1761135067507,-500.0,0.00044109,120]
[392065553,1761135067517,-500.0,0.00044109,120]
[392065554,1761135067527,-500.0,0.00044109,120]
[392065555,1761135067537,-500.0,0.00044109,120]
[392065556,1761135067547,-1168.48,0.00044109,120]
[392065557,1761135067557,-500.0,0.00044109,120]
[392065558,1761135067566,-500.0,0.00044109,120]
[392065559,1761135067576,-500.0,0.00044109,120]
[392065560,1761135067585,-502.93866489,0.00044109,120]
[392065561,1761135067594,-500.0,0.00044109,120]
[392065562,1761135067605,-500.0,0.00044109,120]
[392065563,1761135067614,-500.0,0.00044109,120]
[392065564,1761135067623,-500.0,0.00044109,120]
[392065565,1761135067632,-1609.34,0.00044109,120]
[392065566,1761135067642,-500.0,0.00044109,120]
[392065567,1761135067651,-1017.37,0.00044109,120]
[392065568,1761135067659,-500.0,0.00044109,120]
[392065569,1761135067669,-2039.83,0.00044109,120]
[392065570,1761135067680,-500.0,0.00044109,120]
[392065571,1761135067690,-500.0,0.00044109,120]
[392065572,1761135067699,-500.0,0.00044109,120]
[392065573,1761135067708,-1575.77,0.00044109,120]
[392065574,1761135067717,-500.0,0.00044109,120]
[392065575,1761135067727,-500.0,0.00044109,120]
[392065576,1761135067737,-500.0,0.00044109,120]
[392065577,1761135067746,-623.42842362,0.00044109,30]
[392065578,1761135067755,-1000.0,0.00044136,120]
[392065579,1761135067765,-1000.0,0.00044136,120]
[392065580,1761135067775,-1000.0,0.00044136,120]
[392065581,1761135067784,-1000.0,0.00044136,120]
[392065582,1761135067793,-1000.0,0.00044136,120]
[392065583,1761135067802,-1000.0,0.00044136,120]
[392065584,1761135067811,-1000.0,0.00044136,120]
[392065585,1761135067821,-1000.0,0.00044136,120]
[392065586,1761135067831,-1000.0,0.00044136,120]
[392065587,1761135067840,-1000.0,0.00044136,120]
[392065588,1761135067851,-686.39589383,0.00044136,120]
[392065589,1761135067861,-151.2816168,0.00044136,120]
[392065590,1761135067872,-1444.0,0.00044164,120]
[392065591,1761135067882,-500.0,0.00044175,120]
[392065592,1761135067891,-244.57917538,0.000443,120]
[392065593,1761135067901,-150.7936152,0.00044372,120]
[392065594,1761135067914,-153.440023,0.00044383,120]
[392065595,1761135067924,-293.063254,0.00044383,120]
[392065596,1761135067934,-435.356475,0.00044383,120]
[392065597,1761135067943,-483.906381,0.00044383,120]
[392065598,1761135067953,-500.0,0.00044383,120]
[392065599,1761135067963,-500.0,0.00044383,120]
[392065600,1761135067973,-501.35433576,0.00044383,2]
[392065601,1761135067984,-500.0,0.00044383,120]
[392065602,1761135067994,-500.0,0.00044383,120]
[392065603,1761135068004,-666.16,0.00044383,120]
[392065604,1761135068013,-1326.25,0.00044383,120]
[392065605,1761135068023,-500.0,0.00044383,120]
[392065606,1761135068033,-500.0,0.00044383,120]
[392065607,1761135068043,-1135.05,0.00044383,12]
[392065608,1761135068053,-500.0,0.00044383,120]
[392065609,1761135068063,-500.0,0.00044383,120]
[392065610,1761135068073,-301.72,0.00044383,120]
[392065611,1761135068082,-500.0,0.00044383,120]
[392065612,1761135068091,-500.0,0.00044383,120]
[392065613,1761135068101,-500.0,0.00044383,120]
[392065614,1761135068110,-500.0,0.00044383,120]
[392065615,1761135068120,-500.0,0.00044383,120]
[392065616,1761135068130,-1217.83,0.00044383,120]
[392065617,1761135068139,-1532.95,0.00044383,120]
[392065618,1761135068150,-502.72,0.00044383,120]
[392065619,1761135068160,-585.15,0.00044383,120]
[392065620,1761135068170,-1212.16,0.00044383,120]
[392065621,1761135068180,-500.0,0.00044383,120]
[392065622,1761135068190,-790.03,0.00044383,120]
[392065623,1761135068200,-184.16176112,0.00044383,120]
[392065624,1761135068209,-1161.85,0.00044383,120]
[392065625,1761135068219,-500.0,0.00044383,120]
[392065626,1761135068229,-1070.45,0.00044383,120]
[392065627,1761135068240,-826.1,0.00044383,120]
[392065628,1761135068250,-500.0,0.00044383,120]
[392065629,1761135068260,-213.38075167,0.00044383,60]
[392065630,1761135068271,-1902.57,0.00044383,120]
[392065631,1761135068281,-1813.73,0.00044383,120]
[392065632,1761135068292,-500.0,0.00044383,120]
[392065633,1761135068302,-500.0,0.00044383,120]
[392065634,1761135068314,-500.0,0.00044383,120]
[392065635,1761135068325,-500.0,0.00044383,120]
[392065636,1761135068336,-1840.87,0.00044383,120]
[392065637,1761135068348,-365.34566079,0.00044383,2]
[392065638,1761135068367,-500.0,0.00044383,120]
[392065639,1761135068379,-1063.18,0.00044383,120]
[392065640,1761135068394,-500.0,0.00044383,120]
[392065641,1761135068405,-500.0,0.00044383,120]
[392065642,1761135068420,-1362.94,0.00044383,120]
[392065643,1761135068431,-981.78,0.00044383,120]
[392065644,1761135068442,-500.0,0.00044383,120]
[392065645,1761135068455,-1590.93,0.00044383,120]
[392065646,1761135068467,-332.85374282,0.00044383,120]
[392065647,1761135068479,-500.0,0.00044383,120]
[392065648,1761135068493,-500.0,0.00044383,120]
[392065649,1761135068510,-708.98,0.00044383,120]
[392065650,1761135068521,-500.0,0.00044383,120]
[392065651,1761135068532,-500.0,0.00044383,120]
[392065652,1761135068542,-500.0,0.00044383,120]
[392065653,1761135068553,-1529.75,0.00044383,120]
[392065654,1761135068565,-1023.83,0.00044383,120]
[392065655,1761135068575,-500.0,0.00044383,120]
[392065656,1761135068585,-506.35430145,0.00044383,120]
[392065657,1761135068595,-515.0064634,0.00044383,120]
[392065658,1761135068614,-984.71,0.00044383,120]
[392065659,1761135068625,-506.03739442,0.00044383,120]
[392065660,1761135068635,-680.49,0.00044383,120]
[392065661,1761135068646,-500.0,0.00044383,120]
[392065662,1761135068659,-514.95,0.00044383,120]
[392065663,1761135068670,-507.80604598,0.00044383,120]
[392065664,1761135068779,-505.8256582,0.00044383,120]
[392065665,1761135068790,-500.0,0.00044383,120]
[392065666,1761135068800,-500.0,0.00044383,120]
[392065667,1761135068810,-500.0,0.00044383,120]
[392065668,1761135068820,-500.0,0.00044383,120]
[392065669,1761135068831,-1116.57,0.00044383,120]
[392065670,1761135068841,-504.88763582,0.00044383,120]
[392065671,1761135068855,-500.0,0.00044383,120]
[392065672,1761135068865,-318.18098435,0.00044383,120]
[392065673,1761135068876,-500.0,0.00044383,120]
[392065674,1761135068886,-848.95,0.00044383,120]
[392065675,1761135068897,-500.0,0.00044383,120]
[392065676,1761135068909,-500.0,0.00044383,120]
[392065677,1761135068920,-503.88233106,0.00044383,120]
[392065678,1761135068931,-500.0,0.00044383,120]
[392065679,1761135068942,-606.78034945,0.00044383,120]
[392065680,1761135068953,-502.53597717,0.00044383,120]
[392065681,1761135068963,-500.0,0.00044383,120]
[392065682,1761135068973,-500.0,0.00044383,120]
[392065683,1761135068984,-1111.81,0.00044383,120]
[392065684,1761135068993,-608.13226577,0.00044383,120]
[392065685,1761135069003,-500.0,0.00044383,120]
[392065686,1761135069012,-572.42,0.00044383,120]
[392065687,1761135069023,-951.22,0.00044383,120]
[392065688,1761135069032,-500.0,0.00044383,120]
[392065689,1761135069042,-500.0,0.00044383,120]
[392065690,1761135069052,-500.0,0.00044383,120]
[392065691,1761135069061,-677.6,0.00044383,30]
[392065692,1761135069071,-500.0,0.00044383,120]
[392065693,1761135069080,-1001.47,0.00044383,120]
[392065694,1761135069090,-500.0,0.00044383,120]
[392065695,1761135069104,-500.0,0.00044383,120]
[392065696,1761135069114,-500.0,0.00044383,120]
[392065697,1761135069124,-500.0,0.00044383,120]
[392065698,1761135069135,-300.0,0.00044383,2]
[392065699,1761135069145,-657.01,0.00044383,120]
[392065700,1761135069154,-505.406995,0.00044383,120]
[392065701,1761135069164,-500.0,0.00044383,120]
[392065702,1761135069174,-502.0163191,0.00044383,120]
[392065703,1761135069183,-975.57,0.00044383,120]
[392065704,1761135069193,-506.32340126,0.00044383,120]
[392065705,1761135069203,-824.85,0.00044383,120]
[392065706,1761135069212,-500.0,0.00044383,120]
[392065707,1761135069222,-500.0,0.00044383,120]
[392065708,1761135069232,-614.39920314,0.00044383,120]
[392065709,1761135069242,-500.0,0.00044383,120]
[392065710,1761135069252,-500.0,0.00044383,120]
[392065711,1761135069262,-508.69235977,0.00044383,120]
[392065712,1761135069272,-500.0,0.00044383,120]
[392065713,1761135069283,-500.0,0.00044383,120]
[392065714,1761135069293,-500.0,0.00044383,120]
[392065715,1761135069303,-500.0,0.00044383,120]
[392065716,1761135069314,-500.0,0.00044383,120]
[392065717,1761135069323,-500.0,0.00044383,120]
[392065718,1761135069334,-500.0,0.00044383,120]
[392065719,1761135069343,-500.0,0.00044383,120]
[392065720,1761135069356,-500.0,0.00044383,120]
[392065721,1761135069366,-523.48,0.00044383,120]
[392065722,1761135069375,-500.0,0.00044383,120]
[392065723,1761135069385,-1938.64,0.00044383,120]
[392065724,1761135069395,-500.0,0.00044383,120]
[392065725,1761135069405,-500.0,0.00044383,120]
[392065726,1761135069415,-500.0,0.00044383,120]
[392065727,1761135069426,-1092.13,0.00044383,120]
[392065728,1761135069436,-500.0,0.00044383,120]
[392065729,1761135069446,-500.0,0.00044383,120]
[392065730,1761135069455,-1064.25,0.00044383,120]
[392065731,1761135069466,-500.0,0.00044383,120]
[392065732,1761135069476,-1371.97,0.00044383,120]
[392065733,1761135069486,-187.93,0.00044383,60]
[392065734,1761135069496,-500.0,0.00044383,120]
[392065735,1761135069506,-500.0,0.00044383,120]
[392065736,1761135069515,-1398.45,0.00044383,120]
[392065737,1761135069526,-1363.81,0.00044383,120]
[392065738,1761135069536,-500.0,0.00044383,120]
[392065739,1761135069545,-500.0,0.00044383,120]
[392065740,1761135069555,-1292.65,0.00044383,120]
[392065741,1761135069564,-500.0,0.00044383,120]
[392065742,1761135069572,-500.0,0.00044383,120]
[392065743,1761135069582,-500.0,0.00044383,60]
[392065744,1761135069592,-483.0113384,0.00044383,120]
[392065745,1761135069604,-500.0,0.00044383,120]
[392065746,1761135069613,-336.15903252,0.00044383,120]
[392065747,1761135069623,-500.0,0.00044383,120]
[392065748,1761135069633,-455.39283651,0.00044383,120]
[392065749,1761135069643,-500.0,0.00044383,120]
[392065750,1761135069653,-326.00236383,0.00044383,120]
[392065751,1761135069663,-500.0,0.00044383,120]
[392065752,1761135069672,-500.0,0.00044383,120]
[392065753,1761135069683,-500.0,0.00044383,120]
[392065754,1761135069692,-512.29642503,0.00044383,120]
[392065755,1761135069702,-500.0,0.00044383,120]
[392065756,1761135069712,-245.33564541,0.00044383,120]
[392065757,1761135069722,-500.0,0.00044383,120]
[392065758,1761135069732,-515.67,0.00044383,120]
[392065759,1761135069742,-2087.85,0.00044383,120]
[392065760,1761135069752,-500.0,0.00044383,120]
[392065761,1761135069762,-243.41725175,0.00044383,120]
[392065762,1761135069772,-500.0,0.00044383,120]
[392065763,1761135069782,-500.0,0.00044383,120]
[392065764,1761135069791,-202.14599337,0.00044383,120]
[392065765,1761135069801,-569.93605728,0.00044383,120]
[392065766,1761135069810,-885.58,0.00044383,120]
[392065767,1761135069819,-1941.76,0.00044383,120]
[392065768,1761135069829,-500.0,0.00044383,120]
[392065769,1761135069838,-500.0,0.00044383,120]
[392065770,1761135069847,-465.4318089,0.00044383,120]
[392065771,1761135069862,-1851.65,0.00044383,60]
[392065772,1761135069871,-211.71967303,0.00044383,120]
[392065773,1761135069880,-563.95930871,0.00044383,120]
[392065774,1761135069890,-500.0,0.00044383,120]
[392065775,1761135069900,-500.0,0.00044383,120]
[392065776,1761135069912,-319.34990529,0.00044383,120]
[392065777,1761135069922,-500.0,0.00044383,120]
[392065778,1761135069932,-500.0,0.00044383,120]
[392065779,1761135069943,-500.0,0.00044383,120]
[392065780,1761135069952,-500.0,0.00044383,120]
[392065781,1761135069961,-500.0,0.00044383,120]
[392065782,1761135069970,-500.0,0.00044383,120]
[392065783,1761135069980,-500.0,0.00044383,120]
[392065784,1761135069991,-500.0,0.00044383,120]
[392065785,1761135070001,-500.0,0.00044383,120]
[392065786,1761135070011,-500.0,0.00044383,60]
[392065787,1761135070020,-500.0,0.00044383,120]
[392065788,1761135070030,-276.39716753,0.00044383,120]
[392065789,1761135070040,-808.37,0.00044383,120]
[392065790,1761135070049,-500.0,0.00044383,120]
[392065791,1761135070059,-590.21,0.00044383,120]
[392065792,1761135070068,-500.0,0.00044383,120]
[392065793,1761135070078,-500.0,0.00044383,120]
[392065794,1761135070087,-500.0,0.00044383,120]
[392065795,1761135070097,-511.07511637,0.00044383,120]
[392065796,1761135070109,-500.0,0.00044383,120]
[392065797,1761135070119,-508.51208682,0.00044383,120]
[392065798,1761135070128,-500.0,0.00044383,120]
[392065799,1761135070138,-500.0,0.00044383,120]
[392065800,1761135070148,-500.0,0.00044383,120]
[392065801,1761135070158,-346.01885356,0.00044383,120]
[392065802,1761135070168,-500.0,0.00044383,120]
[392065803,1761135070178,-500.0,0.00044383,120]
[392065804,1761135070187,-500.0,0.00044383,120]
[392065805,1761135070288,-500.0,0.00044383,120]
[392065806,1761135070299,-500.0,0.00044383,120]
[392065807,1761135070308,-500.0,0.00044383,120]
[392065808,1761135070317,-500.0,0.00044383,120]
[392065809,1761135070327,-500.0,0.00044383,120]
[392065810,1761135070336,-500.0,0.00044383,120]
[392065811,1761135070347,-500.0,0.00044383,120]
[392065812,1761135070359,-500.0,0.00044383,120]
[392065813,1761135070368,-500.0,0.00044383,120]
[392065814,1761135070378,-500.0,0.00044383,120]
[392065815,1761135070388,-1666.96,0.00044383,120]
[392065816,1761135070398,-500.0,0.00044383,120]
[392065817,1761135070408,-500.0,0.00044383,120]
[392065818,1761135070418,-500.0,0.00044383,120]
[392065819,1761135070427,-500.0,0.00044383,120]
[392065820,1761135070438,-500.0,0.00044383,120]
[392065821,1761135070448,-500.0,0.00044383,120]
[392065822,1761135070457,-500.0,0.00044383,120]
[392065823,1761135070467,-500.0,0.00044383,120]
[392065824,1761135070476,-500.0,0.00044383,30]
[392065825,1761135070486,-507.02,0.00044383,120]
[392065826,1761135070495,-500.0,0.00044383,120]
[392065827,1761135070504,-500.0,0.00044383,120]
[392065828,1761135070514,-500.0,0.00044383,120]
[392065829,1761135070523,-550.13,0.00044383,120]
[392065830,1761135070533,-500.0,0.00044383,120]
[392065831,1761135070543,-500.0,0.00044383,120]
[392065832,1761135070554,-500.0,0.00044383,120]
[392065833,1761135070562,-2064.5,0.00044383,120]
[392065834,1761135070572,-500.0,0.00044383,120]
[392065835,1761135070581,-913.64,0.00044383,2]
[392065836,1761135070591,-500.0,0.00044383,120]
[392065837,1761135070603,-500.0,0.00044383,120]
[392065838,1761135070613,-537.65955512,0.00044383,120]
[392065839,1761135070623,-500.0,0.00044383,120]
[392065840,1761135070632,-500.0,0.00044383,120]
[392065841,1761135070643,-500.0,0.00044383,120]
[392065842,1761135070653,-500.0,0.00044383,120]
[392065843,1761135070662,-500.0,0.00044383,120]
[392065844,1761135070672,-541.17,0.00044383,120]
[392065845,1761135070682,-872.78,0.00044383,120]
[392065846,1761135070691,-202.31168395,0.00044383,120]
[392065847,1761135070702,-500.0,0.00044383,120]
[392065848,1761135070711,-500.0,0.00044383,120]
[392065849,1761135070721,-513.020331,0.00044383,120]
[392065850,1761135070731,-500.0,0.00044383,2]
[392065851,1761135070742,-500.0,0.00044383,120]
[392065852,1761135070753,-500.0,0.00044383,120]
[392065853,1761135070763,-500.0,0.00044383,120]
[392065854,1761135070774,-500.0,0.00044383,120]
[392065855,1761135070785,-500.0,0.00044383,120]
[392065856,1761135070796,-1205.35,0.00044383,120]
[392065857,1761135070806,-500.0,0.00044383,120]
[392065858,1761135070816,-500.0,0.00044383,120]
[392065859,1761135070826,-500.0,0.00044383,120]
[392065860,1761135070837,-500.0,0.00044383,120]
[392065861,1761135070847,-500.0,0.00044383,120]
[392065862,1761135070861,-500.0,0.00044383,120]
[392065863,1761135070874,-500.0,0.00044383,120]
[392065864,1761135070886,-500.0,0.00044383,120]
[392065865,1761135070896,-500.0,0.00044383,120]
[392065866,1761135070907,-500.0,0.00044383,120]
[392065867,1761135070921,-500.0,0.00044383,120]
[392065868,1761135070930,-500.0,0.00044383,120]
[392065869,1761135070940,-500.0,0.00044383,120]
[392065870,1761135070950,-508.11216972,0.00044383,120]
[392065871,1761135070960,-500.0,0.00044383,120]
[392065872,1761135070970,-542.6,0.00044383,120]
[392065873,1761135070980,-520.07678283,0.00044383,120]
[392065874,1761135070992,-500.0,0.00044383,120]
[392065875,1761135071002,-500.0,0.00044383,120]
[392065876,1761135071012,-500.0,0.00044383,120]
[392065877,1761135071021,-1203.31,0.00044383,120]
[392065878,1761135071031,-500.0,0.00044383,120]
[392065879,1761135071041,-500.0,0.00044383,120]
[392065880,1761135071050,-282.95710952,0.00044383,120]
[392065881,1761135071060,-2653.07,0.00044383,120]
[392065882,1761135071069,-500.0,0.00044383,120]
[392065883,1761135071080,-500.0,0.00044383,120]
[392065884,1761135071090,-588.26,0.00044383,120]
[392065885,1761135071102,-500.0,0.00044383,120]
[392065886,1761135071112,-500.0,0.00044383,120]
[392065887,1761135071123,-416.62280731,0.00044383,120]
[392065888,1761135071133,-775.04,0.00044383,120]
[392065889,1761135071143,-500.0,0.00044383,120]
[392065890,1761135071152,-580.38679294,0.00044383,120]
[392065891,1761135071162,-500.0,0.00044383,120]
[392065892,1761135071171,-500.0,0.00044383,120]
[392065893,1761135071180,-500.0,0.00044383,7]
[392065894,1761135071190,-500.0,0.00044383,120]